bitfinex/quotes_ETHUSD_20250507
["timestamp","ask_amount","ask_price","bid_price","bid_amount"]
[1746608993696,6.22193281,1842.5,1842.1,6.23489662]
[1746608994009,6.22193281,1842.5,1842.2,5.42828539]
[1746608994197,7.68685312,1842.5,1842.1,6.23502948]
[1746608995192,13.1144933,1842.5,1842.1,5.42842948]
[1746608995414,5.42774233,1842.4,1842.0,5.42872276]
[1746608995692,5.42774233,1842.4,1842.0,5.42888165]
[1746608996174,6.24485199,1842.3,1841.9,5.42900709]
[1746608997491,0.8167,1842.3,1842.0,5.42885328]
[1746608997704,0.8167,1842.3,1842.0,5.42872151]
[1746608997955,0.8188,1842.5,1842.1,5.42846568]
[1746608998115,3.0,1842.4,1842.1,5.42846568]
[1746608998297,8.42770638,1842.4,1842.1,5.42846568]
[1746608999440,8.42770638,1842.4,1842.2,18.0]
[1746609001036,8.42772784,1842.4,1842.1,5.42838252]
[1746609001435,3.0,1842.4,1842.2,5.42805677]
[1746609001828,0.8188,1842.5,1842.1,5.42849186]
[1746609002037,8.42774998,1842.4,1842.1,5.42849186]
[1746609002337,8.42774998,1842.4,1842.0,6.25376172]
[1746609002517,3.0,1842.4,1842.1,5.42858033]
[1746609003053,8.42782932,1842.4,1842.0,6.25376172]
[1746609003353,8.42782932,1842.4,1842.1,5.4284985]
[1746609005664,3.0,1842.4,1842.1,5.4284985]
[1746609005859,3.92462168,1842.4,1842.1,5.4284985]
[1746609006160,3.0,1842.4,1842.1,5.4284985]
[1746609006722,8.42775927,1842.4,1842.1,5.4284985]
[1746609007122,3.0,1842.4,1842.1,5.4284985]
[1746609007544,8.42772117,1842.4,1842.1,5.4284985]
[1746609009151,3.0,1842.4,1842.2,5.42814103]
[1746609009631,3.0,1842.4,1842.2,5.42813304]
[1746609010165,3.0,1842.4,1842.3,5.42799761]
[1746609010369,3.0,1842.4,1842.2,5.42813304]
[1746609011066,3.0,1842.4,1842.2,10.85620108]
[1746609011367,3.0,1842.4,1842.2,5.42807785]
[1746609012724,3.0,1842.4,1842.3,5.42799761]
[1746609013730,3.0,1842.4,1842.2,5.42809225]
[1746609014064,3.0,1842.4,1842.2,10.8561922]
[1746609014245,3.0,1842.4,1842.2,5.42809225]
[1746609015287,0.8188,1842.5,1842.3,5.42799761]
[1746609017858,0.8188,1842.5,1842.2,5.42813547]
[1746609018166,0.8188,1842.5,1842.2,10.85626126]
[1746609018355,0.8188,1842.5,1842.3,5.42791761]
[1746609018741,0.8188,1842.5,1842.2,5.42812045]
[1746609018941,0.8188,1842.5,1842.2,10.8562033]
[1746609020088,0.8188,1842.5,1842.3,5.42797568]
[1746609022175,0.8188,1842.5,1842.2,5.42808285]
[1746609022474,0.8188,1842.5,1842.2,10.85620053]
[1746609023177,0.8188,1842.5,1842.2,5.42808285]
[1746609023361,0.8188,1842.5,1842.2,10.856175]
[1746609023566,0.8188,1842.5,1842.2,5.42808285]
[1746609023857,0.8188,1842.5,1842.2,10.85618023]
[1746609024479,0.8188,1842.5,1842.2,5.42808285]
[1746609024778,0.8188,1842.5,1842.2,10.85620394]
[1746609025680,0.8188,1842.5,1842.4,5.42770299]
[1746609025870,3.0,1842.6,1842.3,5.4278874]
[1746609026182,3.0,1842.6,1842.3,5.42778372]
[1746609026479,3.0,1842.6,1842.3,10.85556444]
[1746609027683,3.0,1842.6,1842.3,5.42778072]
[1746609028389,3.0,1842.6,1842.3,10.85556777]
[1746609028789,3.0,1842.6,1842.3,5.42778072]
[1746609029583,8.42715723,1842.6,1842.3,5.42778072]
[1746609030178,0.7705,1842.4,1842.1,5.42843871]
[1746609030378,0.7705,1842.4,1842.2,5.42819076]
[1746609032293,0.7705,1842.4,1842.3,5.42799761]
[1746609032481,3.8084,1842.6,1842.3,5.42799761]
[1746609032857,3.8084,1842.6,1842.4,5.42763707]
[1746609033057,4.73194017,1842.6,1842.4,5.42763707]
[1746609034293,4.73194017,1842.6,1842.3,5.42799761]
[1746609035562,4.73194017,1842.6,1842.3,10.85578102]
[1746609035859,3.8084,1842.6,1842.3,10.85578102]
[1746609036718,0.7579,1842.8,1842.2,0.8324]
[1746609036998,0.26529469,1843.0,1842.2,0.8324]
[1746609036999,0.7579,1843.0,1842.8,5.42652011]
[1746609037159,0.7579,1843.0,1842.7,5.42669681]
[1746609037497,4.60264872,1843.0,1842.6,5.42693621]
[1746609037993,4.60264872,1843.0,1842.7,5.426626]
[1746609038159,3.7579,1843.0,1842.7,5.426626]
[1746609038358,3.7579,1843.0,1842.8,5.42632249]
[1746609038792,0.7579,1843.0,1842.9,5.42623039]
[1746609039189,0.8327,1843.1,1842.9,5.42623039]
[1746609040070,3.0,1843.0,1842.8,5.42649225]
[1746609041199,0.7608,1842.7,1842.4,9.05992381]
[1746609041376,7.69098103,1842.6,1842.4,3.63239246]
[1746609041573,0.7608,1842.5,1842.4,3.63239246]
[1746609043706,0.7608,1842.5,1842.3,5.4278829]
[1746609044514,0.7608,1842.5,1842.4,18.0]
[1746609045904,10.07400446,1842.5,1842.4,18.0]
[1746609047080,9.18820841,1842.5,1842.4,18.0]
[1746609047415,3.7608,1842.5,1842.4,18.0]
[1746609048510,3.7608,1842.5,1842.2,5.42827007]
[1746609048713,9.18829313,1842.5,1842.2,5.42827007]
[1746609048872,9.18829313,1842.5,1842.1,10.89737886]
[1746609049075,9.18829313,1842.5,1842.2,5.42825874]
[1746609050826,9.18829313,1842.5,1842.1,10.89741962]
[1746609051121,9.18829313,1842.5,1842.2,5.42829006]
[1746609051620,9.18829313,1842.5,1842.1,10.89741962]
[1746609052211,14.61596379,1842.5,1842.1,5.42841962]
[1746609052585,2.26377696,1842.4,1842.1,5.42841962]
[1746609052785,7.69156955,1842.4,1842.1,5.42841962]
[1746609053624,8.50804843,1842.2,1841.8,9.85324766]
[1746609053987,8.50804843,1842.2,1841.9,5.42916823]
[1746609054196,6.24427147,1842.2,1841.9,5.42916823]
[1746609054592,3.8158,1842.2,1841.9,5.42916823]
[1746609055833,9.24409448,1842.2,1841.9,5.42916823]
[1746609056033,9.24409448,1842.2,1841.8,9.85324766]
[1746609056332,14.67261623,1842.2,1842.0,18.0]
[1746609056530,9.24409448,1842.2,1842.0,18.0]
[1746609056703,14.67264577,1842.2,1842.0,18.0]
[1746609057030,16.9363972,1842.2,1842.0,18.0]
[1746609057218,11.50787144,1842.2,1842.0,18.0]
[1746609058037,11.50787144,1842.2,1841.8,9.06164766]
[1746609058331,11.50787144,1842.2,1841.8,5.4292552]
[1746609058644,2.26377696,1842.0,1841.7,5.42961865]
[1746609058935,0.7546,1841.9,1841.7,5.42961865]
[1746609059511,0.7546,1841.9,1841.7,5.4295873]
[1746609060010,0.7546,1841.9,1841.7,10.85918897]
[1746609060215,0.7546,1841.9,1841.7,5.4295873]
[1746609060838,0.7546,1841.9,1841.7,10.85917257]
[1746609061038,0.7546,1841.9,1841.8,23.42947116]
[1746609062099,0.7546,1841.9,1841.8,18.0]
[1746609063411,0.7546,1841.9,1841.6,5.4299111]
[1746609063614,6.18387248,1841.9,1841.6,5.4299111]
[1746609064738,6.18387248,1841.9,1841.5,10.89914684]
[1746609065033,6.18387248,1841.9,1841.6,5.4300532]
[1746609065839,6.18387248,1841.9,1841.5,5.43014684]
[1746609066417,6.18387248,1841.9,1841.6,18.0]
[1746609066938,0.7546,1841.9,1841.6,23.42995205]
[1746609067246,0.7546,1841.9,1841.6,23.42990664]
[1746609067429,6.18382457,1841.9,1841.6,23.42990664]
[1746609067832,6.18382457,1841.9,1841.6,18.0]
[1746609068036,0.7993,1841.8,1841.6,18.0]
[1746609069011,0.7993,1841.8,1841.6,23.43005766]
[1746609069519,0.7993,1841.8,1841.6,18.0]
[1746609069719,6.22895654,1841.8,1841.6,18.0]
[1746609070246,8.4927335,1841.8,1841.6,18.0]
[1746609070451,8.42976597,1841.7,1841.6,18.0]
[1746609070750,9.24316597,1841.7,1841.6,18.0]
[1746609071968,11.50694293,1841.7,1841.6,18.0]
[1746609072262,11.50694293,1841.7,1841.6,18.12656821]
[1746609072767,9.24316597,1841.7,1841.6,17.79576821]
[1746609073050,11.65304657,1841.7,1841.6,0.12656821]
[1746609073225,5.43040473,1841.5,1841.1,6.24435988]
[1746609073429,5.43040473,1841.5,1841.2,0.12947162]
[1746609073627,5.43040473,1841.5,1841.1,0.813]
[1746609073933,10.86101454,1841.5,1841.2,0.12947162]
[1746609074141,7.04288388,1841.5,1841.1,6.24433178]
[1746609074339,7.04288388,1841.5,1841.3,0.12874565]
[1746609074527,7.04288388,1841.5,1841.2,5.56401615]
[1746609074722,10.04288388,1841.5,1841.4,0.13135396]
[1746609074927,10.04288388,1841.5,1841.2,5.43121033]
[1746609075155,10.04288388,1841.5,1841.4,0.13135396]
[1746609075319,10.04288388,1841.5,1841.2,5.43121033]
[1746609075519,10.04288388,1841.5,1841.4,0.13135396]
[1746609075720,4.61247915,1841.5,1841.2,5.43121033]
[1746609078466,3.0,1841.5,1841.3,5.43094552]
[1746609078649,4.0693861,1841.5,1841.3,5.43094552]
[1746609079762,4.0693861,1841.5,1841.2,5.43101811]
[1746609081659,4.8766861,1841.5,1841.2,5.43101811]
[1746609081864,10.30708893,1841.5,1841.2,5.43101811]
[1746609082060,10.72349503,1841.5,1841.2,5.43101811]
[1746609082521,5.2930922,1841.5,1841.2,5.43101811]
[1746609083234,10.72355914,1841.5,1841.2,5.43101811]
[1746609083861,5.2930922,1841.5,1841.2,10.86207013]
[1746609084061,5.2930922,1841.5,1841.2,5.43101811]
[1746609086569,0.52930922,1841.4,1841.1,5.43135304]
[1746609086930,0.52930922,1841.4,1841.1,10.86269152]
[1746609087671,10.72347439,1841.5,1841.1,5.43133848]
[1746609087906,10.72347439,1841.5,1841.2,5.43115101]
[1746609088442,5.2930922,1841.5,1841.2,5.43115101]
[1746609088932,3.4164061,1841.5,1841.3,5.43068609]
[1746609089355,3.4164061,1841.5,1841.3,10.86142549]
[1746609089569,3.4164061,1841.5,1841.3,5.43068609]
[1746609089778,3.4164061,1841.5,1841.4,5.43065059]
[1746609089973,0.4164061,1841.5,1841.4,5.43065059]
[1746609090272,13.1624182,1841.8,1841.4,6.19395059]
[1746609090273,0.8149,1841.8,1841.4,6.19395059]
[1746609090473,1.22257829,1841.8,1841.6,5.4300023]
[1746609090672,1.88777033,1841.8,1841.7,0.12917675]
[1746609090873,4.88777033,1841.8,1841.5,5.43023409]
[1746609091263,10.31727602,1841.8,1841.6,0.12990241]
[1746609091439,12.58105298,1841.8,1841.6,0.12990241]
[1746609091898,7.15154729,1841.8,1841.6,0.12990241]
[1746609092096,0.71515473,1841.7,1841.6,0.12990241]
[1746609093600,0.71515473,1841.7,1841.4,5.43047411]
[1746609093786,0.71515473,1841.7,1841.6,0.12990241]
[1746609093988,0.71515473,1841.7,1841.5,0.13062814]
[1746609094194,0.71515473,1841.7,1841.6,0.12990241]
[1746609094499,0.71515473,1841.7,1841.4,5.43047411]
[1746609094663,0.71515473,1841.7,1841.6,0.12937781]
[1746609094864,0.71515473,1841.7,1841.4,10.86091802]
[1746609095064,6.14492554,1841.7,1841.5,0.13010354]
[1746609095288,0.71515473,1841.7,1841.5,0.13010354]
[1746609098301,0.71515473,1841.7,1841.5,5.56045124]
[1746609098487,0.71515473,1841.7,1841.5,0.13010354]
[1746609098693,7.15154729,1841.8,1841.5,10.99060041]
[1746609098887,7.15154729,1841.8,1841.5,5.5602518]
[1746609099071,7.15154729,1841.8,1841.6,5.4300547]
[1746609099272,7.15154729,1841.8,1841.7,0.12865215]
[1746609099476,7.15154729,1841.8,1841.5,5.43014826]
[1746609099676,12.58106438,1841.8,1841.6,0.12937781]
[1746609101991,4.25810644,1841.7,1841.6,0.12937781]
[1746609102495,4.25810644,1841.7,1841.6,0.12866586]
[1746609102804,9.68787241,1841.7,1841.4,5.43049917]
[1746609103008,9.68787241,1841.7,1841.6,0.12866586]
[1746609103217,9.68787241,1841.7,1841.5,0.1293916]
[1746609103388,9.68787241,1841.7,1841.6,0.12866586]
[1746609103714,9.68787241,1841.7,1841.4,5.43049917]
[1746609104033,9.68787241,1841.7,1841.6,0.12866586]
[1746609104190,9.41612501,1841.6,1841.5,0.1293916]
[1746609104390,9.41612501,1841.6,1841.3,5.4309407]
[1746609105612,3.9860642,1841.6,1841.4,0.13000508]
[1746609106024,3.9860642,1841.6,1841.3,5.43073914]
[1746609106182,3.9860642,1841.6,1841.5,0.12927927]
[1746609106385,3.9860642,1841.6,1841.4,0.13000508]
[1746609106685,3.9860642,1841.6,1841.5,0.12927927]
[1746609106882,3.9860642,1841.6,1841.3,5.43073914]
[1746609107075,3.9860642,1841.6,1841.4,0.13000508]
[1746609107281,3.9860642,1841.6,1841.3,5.43073914]
[1746609107481,3.9860642,1841.6,1841.4,0.13000508]
[1746609107677,3.9860642,1841.6,1841.3,5.43073914]
[1746609107881,3.9860642,1841.6,1841.4,0.13000508]
[1746609108081,3.9860642,1841.6,1841.3,5.43073914]
[1746609108317,3.9860642,1841.6,1841.4,0.13000508]
[1746609108714,3.9860642,1841.6,1841.3,5.43073914]
[1746609108880,3.01727696,1841.6,1841.5,0.12927927]
[1746609109082,3.01727696,1841.6,1841.2,5.43106564]
[1746609109313,3.01727696,1841.6,1841.3,0.13073097]
[1746609109514,8.44748995,1841.6,1841.3,0.13073097]
[1746609110022,8.44748995,1841.6,1841.3,5.56166391]
[1746609110189,10.26104049,1841.6,1841.3,5.56166391]
[1746609110389,10.26104049,1841.6,1841.3,0.13073097]
[1746609111012,15.69134782,1841.6,1841.3,0.13073097]
[1746609111308,10.26104049,1841.6,1841.3,0.13073097]
[1746609113126,15.69132323,1841.6,1841.3,0.13073097]
[1746609113299,6.99958497,1841.5,1841.3,0.13073097]
[1746609114430,5.43045265,1841.5,1841.3,0.13073097]
[1746609115928,8.44748995,1841.6,1841.3,0.13073097]
[1746609117232,9.68797851,1841.7,1841.3,5.5615129]
[1746609117531,6.64683227,1841.8,1841.5,6.18397064]
[1746609117532,4.21717829,1841.8,1841.5,6.18397064]
[1746609117831,9.64680362,1841.8,1841.5,0.7537]
[1746609117994,9.64680362,1841.8,1841.6,0.12930292]
[1746609120533,0.40767829,1841.8,1841.6,5.55927812]
[1746609120728,3.0,1841.9,1841.6,5.55927812]
[1746609120906,8.42926373,1841.9,1841.6,5.55927812]
[1746609121112,5.42957989,1841.8,1841.6,0.12930292]
[1746609121604,10.85927231,1841.8,1841.6,0.12930292]
[1746609121795,8.42979101,1841.7,1841.4,11.68494653]
[1746609121999,11.48716797,1841.7,1841.4,11.68494653]
[1746609122199,11.48716797,1841.7,1841.4,10.89744653]
[1746609122429,13.17884276,1841.7,1841.4,5.467]
[1746609122746,13.17884276,1841.7,1841.3,5.43075862]
[1746609122943,2.26377696,1841.5,1841.2,6.2186529]
[1746609123315,2.26377696,1841.5,1841.2,6.21857321]
[1746609123536,2.26377696,1841.5,1841.2,5.43107321]
[1746609124141,2.26377696,1841.5,1841.2,10.86212208]
[1746609124542,2.26377696,1841.5,1841.2,5.43104887]
[1746609124700,2.26377696,1841.5,1841.2,10.86209615]
[1746609124900,2.26377696,1841.5,1841.3,5.43090205]
[1746609125200,2.26377696,1841.5,1841.2,5.43104728]
[1746609125402,2.26377696,1841.5,1841.3,5.43086062]
[1746609125694,5.43022999,1841.6,1841.3,5.43086062]
[1746609125930,7.2911528,1841.6,1841.3,5.43086062]
[1746609126313,1.86092281,1841.6,1841.4,5.43061759]
[1746609127045,1.86092281,1841.6,1841.3,5.43092662]
[1746609128739,7.29102652,1841.6,1841.3,5.43092662]
[1746609128936,1.86092281,1841.6,1841.3,5.43092662]
[1746609129148,1.86092281,1841.6,1841.4,5.43063243]
[1746609129510,1.86092281,1841.6,1841.4,5.43043266]
[1746609129838,3.0,1841.7,1841.4,6.21873266]
[1746609130240,4.20750638,1841.8,1841.5,5.43017511]
[1746609130621,9.63702824,1841.8,1841.5,5.43017511]
[1746609132541,4.20750638,1841.8,1841.5,5.43017511]
[1746609132744,9.63698238,1841.8,1841.5,5.43017511]
[1746609133048,0.96369824,1841.7,1841.5,5.43017511]
[1746609134934,0.96369824,1841.7,1841.3,5.43083221]
[1746609135244,3.2274752,1841.7,1841.3,5.43073238]
[1746609135418,7.69370086,1841.7,1841.3,5.43073238]
[1746609135620,7.69370086,1841.7,1841.4,0.13030475]
[1746609135915,7.69370086,1841.7,1841.3,5.43073238]
[1746609136110,7.69370086,1841.7,1841.4,0.13030475]
[1746609136345,7.69370086,1841.7,1841.3,10.86146848]
[1746609136550,9.12678112,1841.7,1841.5,0.12957894]
[1746609136746,9.12678112,1841.7,1841.4,0.13030475]
[1746609136951,12.12678112,1841.7,1841.6,0.1288532]
[1746609137153,12.12678112,1841.7,1841.5,0.12957894]
[1746609137358,12.12678112,1841.7,1841.6,0.1288532]
[1746609137853,12.12678112,1841.7,1841.4,5.43060001]
[1746609138049,12.12678112,1841.7,1841.6,0.1288532]
[1746609138250,12.12678112,1841.7,1841.5,0.12957894]
[1746609138441,12.12678112,1841.7,1841.6,0.1288532]
[1746609138852,12.12678112,1841.7,1841.4,5.43060001]
[1746609139052,12.12678112,1841.7,1841.6,0.1288532]
[1746609139524,12.12678112,1841.7,1841.4,5.43060001]
[1746609139729,12.12678112,1841.7,1841.5,0.12916684]
[1746609139956,12.12678112,1841.7,1841.4,5.43061175]
[1746609139957,1.21267811,1841.6,1841.4,5.43061175]
[1746609140123,12.12678112,1841.7,1841.6,0.1284411]
[1746609140327,12.12678112,1841.7,1841.4,5.43061175]
[1746609140621,12.12678112,1841.7,1841.5,0.12916684]
[1746609141454,5.43054296,1841.5,1841.2,3.63239246]
[1746609141661,3.0,1841.6,1841.3,5.43083395]
[1746609142631,16.4672474,1841.8,1841.4,5.43052519]
[1746609142833,3.0,1841.7,1841.5,5.43011654]
[1746609143041,3.0,1841.7,1841.4,6.18602722]
[1746609143941,3.0,1841.7,1841.4,11.61649585]
[1746609144145,3.0,1841.7,1841.4,6.18602722]
[1746609144548,3.0,1841.7,1841.4,11.61647376]
[1746609144762,3.0,1841.7,1841.4,6.18602722]
[1746609145263,3.0,1841.7,1841.4,6.06395055]
[1746609146060,8.42986675,1841.7,1841.4,6.06395055]
[1746609146555,8.42986675,1841.7,1841.4,0.63352333]
[1746609146768,5.43018113,1841.6,1841.3,5.43076831]
[1746609147065,5.43018113,1841.6,1841.2,3.63239246]
[1746609147066,5.43018113,1841.6,1841.2,9.06346878]
[1746609147989,5.43018113,1841.6,1841.3,5.4309438]
[1746609148267,5.43018113,1841.6,1841.2,9.83466878]
[1746609148428,5.43018113,1841.6,1841.2,9.83464913]
[1746609148761,5.43038656,1841.5,1841.2,9.83464913]
[1746609149728,5.43065787,1841.4,1841.2,3.63239246]
[1746609150063,13.86120525,1841.5,1841.3,18.0]
[1746609150226,15.55477347,1841.5,1841.3,18.0]
[1746609150863,5.43065059,1841.4,1841.3,18.0]
[1746609151053,10.69442755,1841.4,1841.3,18.0]
[1746609151793,11.48522755,1841.4,1841.3,18.0]
[1746609153549,16.91613544,1841.4,1841.2,3.63239246]
[1746609154489,4.86097037,1841.4,1841.2,3.63239246]
[1746609154770,3.0,1841.4,1841.2,9.0634537]
[1746609155936,3.0,1841.4,1841.2,9.06344436]
[1746609156971,5.43020959,1841.6,1841.2,4.40359246]
[1746609157141,3.0,1841.5,1841.2,9.83466548]
[1746609158681,3.0,1841.5,1841.3,5.43085296]
[1746609158974,3.0,1841.5,1841.4,5.43065059]
[1746609159170,3.0,1841.5,1841.3,5.43079545]
[1746609159974,7.69362915,1841.7,1841.3,5.43079545]
[1746609160272,3.0,1841.6,1841.3,5.43079545]
[1746609161077,8.43013441,1841.6,1841.3,5.43079545]
[1746609162780,3.0,1841.6,1841.4,5.43053983]
[1746609163144,3.0,1841.8,1841.6,5.42980637]
[1746609163468,8.42929934,1841.9,1841.5,5.43014186]
[1746609163981,8.42929934,1841.9,1841.5,10.8603354]
[1746609164168,8.42929934,1841.9,1841.5,5.43014186]
[1746609164344,8.42929934,1841.9,1841.5,10.86028657]
[1746609164674,8.42929934,1841.9,1841.5,5.43014186]
[1746609165777,8.84526832,1841.9,1841.5,5.43014186]
[1746609165978,8.84526832,1841.9,1841.5,7.24833983]
[1746609166274,5.42950046,1841.8,1841.4,12.75178966]
[1746609166478,5.42950046,1841.8,1841.4,18.18223101]
[1746609166681,5.42950046,1841.8,1841.4,12.75177488]
[1746609167382,3.0,1841.7,1841.4,12.75177488]
[1746609167549,5.42950046,1841.8,1841.4,12.75177488]
[1746609167748,3.0,1841.7,1841.4,12.75177488]
[1746609169345,3.0,1841.7,1841.5,1.27517749]
[1746609169679,3.0,1841.7,1841.5,5.43030447]
[1746609169881,3.41596898,1841.9,1841.6,5.43006081]
[1746609170081,8.84530366,1841.9,1841.5,5.43030447]
[1746609171593,8.84530366,1841.9,1841.4,11.66573301]
[1746609171594,0.8012,1842.0,1841.6,0.82549692]
[1746609171889,9.23013052,1842.0,1841.7,5.42965922]
[1746609174391,8.44722439,1842.2,1841.6,0.7712]
[1746609174556,3.0,1842.1,1841.8,5.42933711]
[1746609174763,3.0,1842.1,1841.9,5.42901456]
[1746609175116,3.0,1842.1,1841.9,5.42897663]
[1746609177988,3.7696,1842.1,1841.8,6.20052203]
[1746609178151,3.7696,1842.1,1841.9,5.42915878]
[1746609178483,3.0,1842.1,1841.9,10.85822183]
[1746609178654,3.40610406,1842.2,1841.9,5.42906305]
[1746609178854,3.0,1842.2,1841.9,5.42906305]
[1746609179099,3.0,1842.2,1841.9,5.42899555]
[1746609179266,3.7696,1842.3,1842.1,5.42858693]
[1746609180199,3.7696,1842.3,1842.0,5.42887896]
[1746609180357,3.7696,1842.3,1842.1,5.42857046]
[1746609181473,3.7696,1842.3,1842.0,5.42870351]
[1746609181474,9.19761201,1842.3,1842.0,5.42870351]
[1746609182097,3.7696,1842.3,1842.0,10.85740158]
[1746609182300,3.7696,1842.3,1842.1,5.4285715]
[1746609182601,3.0,1842.3,1842.1,5.4285715]
[1746609182761,0.7603,1842.4,1842.1,5.42846681]
[1746609183111,0.7603,1842.4,1842.2,5.42814847]
[1746609184802,3.0,1842.5,1842.2,5.42814847]
[1746609185560,3.0,1842.5,1842.2,5.4280987]
[1746609185861,3.0,1842.5,1842.2,5.42807769]
[1746609186201,8.44567865,1842.6,1842.2,5.42807769]
[1746609186403,3.0,1842.5,1842.2,5.42807769]
[1746609186776,3.0,1842.5,1842.2,10.85618039]
[1746609186978,3.0,1842.5,1842.3,5.42795727]
[1746609188076,3.0,1842.5,1842.2,6.19929481]
[1746609188281,3.0,1842.5,1842.2,11.62741285]
[1746609188464,3.0,1842.5,1842.3,5.42798731]
[1746609188807,4.10998617,1842.5,1842.2,6.19929481]
[1746609190614,4.10998617,1842.5,1842.2,11.62737716]
[1746609190796,3.0,1842.5,1842.2,11.62737618]
[1746609190996,3.0,1842.5,1842.2,6.19928235]
[1746609191197,8.42744376,1842.5,1842.2,6.19928235]
[1746609191413,3.0,1842.5,1842.2,6.19928235]
[1746609191797,8.42750102,1842.5,1842.2,6.19928235]
[1746609191997,10.08023729,1842.5,1842.2,6.19928235]
[1746609193031,10.08023729,1842.5,1842.2,5.42808235]
[1746609193184,9.97648483,1842.5,1842.2,5.42808235]
[1746609193381,0.8327,1842.4,1842.1,5.42841839]
[1746609193726,8.52427527,1842.4,1842.1,5.42841839]
[1746609193927,3.09647696,1842.4,1842.1,5.42841839]
[1746609194333,3.09647696,1842.4,1842.1,7.05993934]
[1746609194627,3.09647696,1842.4,1842.2,5.42817053]
[1746609197127,3.09647696,1842.4,1842.1,7.05991832]
[1746609197326,3.09647696,1842.4,1842.1,12.48830151]
[1746609197923,3.09647696,1842.4,1842.2,5.42827798]
[1746609198538,2.26377696,1842.4,1842.2,5.42827798]
[1746609199324,7.69160246,1842.4,1842.0,10.88663748]
[1746609199523,7.69160246,1842.4,1842.1,5.42848001]
[1746609199728,2.89624754,1842.5,1842.2,5.42811283]
[1746609199913,2.89624754,1842.5,1842.3,5.42788355]
[1746609200230,2.89624754,1842.5,1842.2,5.48239104]
[1746609200404,2.89624754,1842.5,1842.2,10.85618823]
[1746609200603,2.89624754,1842.5,1842.2,6.64509155]
[1746609201317,2.89624754,1842.5,1842.2,6.59081422]
[1746609201716,8.32368373,1842.5,1842.2,6.59081422]
[1746609201893,8.32368373,1842.5,1842.2,5.4280754]
[1746609202529,8.32368373,1842.5,1842.1,11.62803504]
[1746609202734,9.11728373,1842.5,1842.1,11.62803504]
[1746609203034,9.11728373,1842.5,1842.1,6.1995851]
[1746609203324,9.11728373,1842.5,1842.1,11.62800141]
[1746609203533,9.11728373,1842.5,1842.1,8.03639311]
[1746609203830,6.22357553,1842.3,1842.0,10.88668918]
[1746609204228,0.7955,1842.3,1842.0,10.88668918]
[1746609204634,6.22355067,1842.3,1842.0,10.88668918]
[1746609204797,0.7955,1842.3,1842.0,10.8866759]
[1746609205831,0.7955,1842.3,1842.1,5.42850455]
[1746609206537,0.7955,1842.3,1842.0,10.85741956]
[1746609206738,0.7955,1842.3,1842.0,12.56578152]
[1746609207135,0.7955,1842.3,1842.1,5.42853193]
[1746609209612,0.7955,1842.3,1842.1,10.85697765]
[1746609209814,0.7955,1842.3,1842.1,5.42844572]
[1746609211433,0.7955,1842.3,1842.1,5.42838385]
[1746609211637,3.05607696,1842.4,1842.2,5.42818659]
[1746609211815,8.32376184,1842.5,1842.1,5.42838385]
[1746609211816,2.89624754,1842.5,1842.3,5.42791345]
[1746609214141,2.89624754,1842.5,1842.2,5.42815315]
[1746609217149,2.89624754,1842.5,1842.3,5.42776852]
[1746609217445,2.89624754,1842.5,1842.2,5.42817344]
[1746609217648,2.89624754,1842.5,1842.2,12.09044871]
[1746609218047,2.89624754,1842.5,1842.3,5.42798778]
[1746609219461,2.89624754,1842.5,1842.3,10.85578626]
[1746609219630,2.89624754,1842.5,1842.3,5.42779848]
[1746609224152,2.26377696,1842.4,1842.3,5.42779848]
[1746609224362,9.00575156,1842.4,1842.0,9.06108337]
[1746609224651,3.06187696,1842.4,1842.1,5.42850319]
[1746609225654,3.06187696,1842.4,1842.1,5.42842354]
[1746609229154,8.48963067,1842.4,1842.1,5.42842354]
[1746609229359,8.48963067,1842.4,1842.0,5.42867181]
[1746609229855,3.06187696,1842.4,1842.0,5.42867181]
[1746609230060,8.48958741,1842.4,1842.1,5.42847487]
[1746609230761,8.48958741,1842.4,1842.1,5.42847194]
[1746609231157,8.48958741,1842.4,1842.0,10.85736416]
[1746609231367,8.48958741,1842.4,1842.1,5.42850471]
[1746609232565,3.06187696,1842.4,1842.1,5.42844658]
[1746609233185,3.06187696,1842.4,1842.1,5.42843141]
[1746609233326,0.7981,1842.4,1842.1,0.54827298]
[1746609233525,0.7981,1842.4,1842.2,5.42811551]
[1746609233726,2.89624754,1842.5,1842.2,5.42807413]
[1746609236175,8.32370689,1842.5,1842.2,5.42807413]
[1746609236994,2.89624754,1842.5,1842.2,5.42807413]
[1746609237793,3.03137696,1842.4,1842.1,5.4284235]
[1746609237949,3.03137696,1842.4,1842.1,7.05924165]
[1746609240695,3.03137696,1842.4,1842.1,12.48766204]
[1746609241684,3.03137696,1842.4,1842.1,7.05923854]
[1746609242018,3.03137696,1842.4,1842.1,5.42842039]
[1746609242377,3.03137696,1842.4,1842.2,5.42827009]
[1746609244608,3.03137696,1842.4,1842.1,10.8568043]
[1746609244915,2.89624754,1842.5,1842.2,6.18658173]
[1746609245207,5.9740245,1842.5,1842.2,5.42818173]
[1746609245507,5.9740245,1842.5,1842.1,5.42838391]
[1746609245508,12.58254287,1842.5,1842.1,5.42838391]
[1746609245717,12.58254287,1842.5,1842.1,10.85681893]
[1746609246130,12.58254287,1842.5,1842.1,5.42838391]
[1746609247215,7.15504961,1842.5,1842.1,5.42838391]
[1746609247414,12.58248092,1842.5,1842.2,5.42814045]
[1746609248309,7.15504961,1842.5,1842.2,5.42814045]
[1746609248479,12.58251024,1842.5,1842.2,5.42814045]
[1746609249410,12.58251024,1842.5,1842.1,5.42838391]
[1746609251719,12.58251024,1842.5,1842.1,10.85678696]
[1746609252312,7.15504961,1842.5,1842.2,5.42810537]
[1746609252742,12.58255952,1842.5,1842.2,5.42810537]
[1746609253033,3.09497696,1842.3,1842.1,5.42838391]
[1746609255410,3.09497696,1842.3,1842.0,5.42886536]
[1746609255615,2.26377696,1842.1,1841.8,9.8329322]
[1746609255815,2.26377696,1842.1,1841.9,5.451]
[1746609256408,2.26377696,1842.1,1841.9,10.88013075]
[1746609256801,8.52315278,1842.3,1841.9,5.42913075]
[1746609256982,9.37546806,1842.3,1841.9,5.42913075]
[1746609258113,5.4283735,1842.2,1841.9,5.42913075]
[1746609258324,3.06017696,1842.1,1841.8,14.50865193]
[1746609258493,3.06017696,1842.1,1841.8,10.87625947]
[1746609258691,8.48880843,1842.1,1841.8,10.87625947]
[1746609259022,3.06017696,1842.1,1841.8,10.87625947]
[1746609259219,3.06017696,1842.1,1841.9,5.42915316]
[1746609259628,3.06017696,1842.1,1841.8,16.30553395]
[1746609259800,3.06017696,1842.1,1841.8,18.37644659]
[1746609260323,8.48887421,1842.1,1841.8,10.87644174]
[1746609260528,3.06017696,1842.1,1841.8,10.87644174]
[1746609261224,3.06017696,1842.1,1841.9,5.42916411]